bitfinex-derivatives/quotes_ETHF0:USTF0_20251119
["timestamp","ask_amount","ask_price","bid_price","bid_amount"]
[1763565280561,3.2078,3086.7,3086.4,0.5025971]
[1763565280965,3.2078,3086.7,3086.6,0.6563]
[1763565281362,0.00485853,3086.8,3086.7,0.6563]
[1763565284370,0.00485853,3086.8,3086.7,1.48734975]
[1763565285672,0.00485853,3086.8,3086.7,0.6563]
[1763565285972,3.6126,3087.6,3087.2,0.6563]
[1763565286164,3.2078,3087.6,3087.2,0.6563]
[1763565286367,3.2078,3087.6,3087.2,1.49188434]
[1763565286671,3.5849,3087.6,3087.1,0.83558434]
[1763565286870,3.5849,3087.6,3087.2,0.83558434]
[1763565287075,3.2078,3087.6,3087.5,0.6563]
[1763565287262,1.04982,3088.5,3087.6,0.3428]
[1763565287462,1.0111,3088.2,3088.1,4.04338434]
[1763565287658,1.05014,3087.5,3087.2,0.83562636]
[1763565287870,1.05044,3086.7,3085.9,4.87632849]
[1763565288067,1.05046,3086.6,3085.9,3.2078]
[1763565288267,1.05048,3086.5,3085.6,1.66852849]
[1763565288468,1.05048,3086.5,3085.7,1.66852849]
[1763565288868,1.05048,3086.5,3086.1,0.00485853]
[1763565290660,7.05048,3086.5,3086.4,0.5025971]
[1763565290973,6.0,3086.5,3086.1,0.00485853]
[1763565291171,3.2078,3086.2,3086.1,0.00485853]
[1763565291973,4.25838,3086.2,3086.1,0.00738088]
[1763565292670,4.25838,3086.2,3086.1,0.66368088]
[1763565292862,3.2078,3086.2,3086.1,0.66368088]
[1763565293066,3.2078,3086.6,3086.5,0.6563]
[1763565293474,0.00485853,3086.8,3086.7,0.6563]
[1763565293675,3.2078,3087.0,3086.4,0.391]
[1763565293875,3.2078,3087.0,3086.7,1.66852849]
[1763565294073,3.2078,3087.0,3086.6,1.66852849]
[1763565294869,3.2078,3087.0,3086.5,1.66852849]
[1763565295171,3.2078,3087.0,3086.4,2.05952849]
[1763565296265,3.2078,3086.8,3086.4,0.391]
[1763565296972,3.2078,3086.8,3086.7,0.6563]
[1763565298069,3.2078,3086.8,3086.4,3.5988]
[1763565298374,3.2078,3086.8,3086.4,0.391]
[1763565298871,3.2078,3086.8,3086.7,0.6563]
[1763565299565,4.25784,3087.8,3087.0,1.0473]
[1763565299764,4.25784,3087.8,3087.0,0.391]
[1763565300070,3.2078,3087.4,3087.0,0.391]
[1763565300774,3.2078,3087.4,3086.6,1.66852849]
[1763565300976,3.2078,3086.9,3086.4,0.391]
[1763565301172,1.0504,3086.8,3086.7,0.6563]
[1763565301678,0.00485853,3087.5,3087.4,0.6563]
[1763565302580,0.00404863,3088.3,3088.2,0.5006]
[1763565303377,0.00404863,3088.3,3087.9,3.2078]
[1763565303573,0.00404863,3088.3,3087.9,3.21265853]
[1763565303879,4.26174863,3088.3,3087.9,0.00485853]
[1763565304375,1.04998,3088.0,3087.9,0.00485853]
[1763565304870,3.21184863,3088.3,3087.9,0.00485853]
[1763565304871,3.21184863,3088.3,3087.9,3.21265853]
[1763565305071,3.21184863,3088.3,3087.9,0.00485853]
[1763565305271,0.00485853,3088.6,3087.9,3.21265853]
[1763565305569,0.00485853,3088.6,3088.4,3.7084]
[1763565306273,0.00870989,3088.6,3088.4,3.71222437]
[1763565306574,3.2078,3090.6,3089.1,0.5006]
[1763565306771,3.2078,3090.6,3089.8,3.7084]
[1763565306964,1.04908,3090.7,3089.8,3.7084]
[1763565307168,3.2078,3090.6,3089.8,0.5006]
[1763565307369,1.04924,3090.2,3089.9,0.00485853]
[1763565307678,4.25704,3090.2,3089.9,0.00485853]
[1763565308073,0.00485853,3090.5,3089.9,3.21265853]
[1763565308273,0.00485853,3090.5,3089.9,0.00485853]
[1763565308474,0.00485853,3090.5,3089.9,3.21265853]
[1763565310071,0.00485853,3090.5,3090.4,3.2078]
[1763565310482,3.2078,3091.0,3090.5,0.5006]
[1763565310677,1.0488,3091.5,3090.9,3.2078]
[1763565310979,1.0488,3091.5,3090.5,0.5006]
[1763565310980,3.2078,3091.4,3090.5,0.5006]
[1763565311171,1.04904,3090.8,3090.4,3.2078]
[1763565311374,3.2078,3090.5,3089.9,0.00485853]
[1763565311577,3.21497985,3090.5,3089.9,0.00761203]
[1763565311972,3.21497985,3090.5,3089.2,3.2078]
[1763565311973,3.2078,3090.0,3089.2,3.2078]
[1763565312173,3.2078,3089.5,3089.1,0.5006]
[1763565312577,1.04954,3089.3,3088.8,3.2078]
[1763565312776,1.04965,3089.0,3088.8,3.2078]
[1763565313083,1.04966,3088.9,3088.8,0.00231249]
[1763565313480,1.04966,3088.9,3088.8,0.50291249]
[1763565313672,1.04966,3088.9,3088.8,0.00231249]
[1763565317783,1.04986,3088.4,3087.7,3.7084]
[1763565317988,1.04994,3088.1,3087.7,3.2078]
[1763565318289,1.05002,3087.9,3087.7,3.2078]
[1763565318784,0.00402425,3087.9,3087.7,3.71076872]
[1763565319386,0.00402425,3087.9,3087.7,3.21016872]
[1763565319691,1.04988,3088.3,3087.7,3.71076872]
[1763565320281,3.2078,3088.4,3087.7,3.71076872]
[1763565320282,1.04998,3088.0,3087.7,3.71076872]
[1763565320482,3.2078,3088.4,3087.7,3.71076872]
[1763565320781,3.21547252,3088.4,3087.7,3.71076872]
[1763565320986,0.00767252,3088.4,3088.1,3.2078]
[1763565321591,0.00767252,3088.4,3087.7,3.71076872]
[1763565322694,0.00767252,3088.4,3088.1,3.2078]
[1763565324084,3.2078,3089.2,3088.4,0.5006]
[1763565325195,0.00314258,3089.1,3088.4,0.5006]
[1763565325691,3.2078,3088.8,3088.4,0.5006]
[1763565326092,3.2078,3088.8,3088.1,3.2078]
[1763565326295,1.04994,3088.2,3087.7,3.71076872]
[1763565326987,1.04994,3088.2,3088.1,3.2078]
[1763565327193,3.2078,3088.8,3088.1,3.2078]
[1763565327700,1.04972,3088.8,3088.1,3.2078]
[1763565328391,0.00314258,3089.1,3088.5,3.2078]
[1763565328595,0.00314258,3089.1,3089.0,3.2078]
[1763565328789,0.00394203,3089.2,3089.1,0.4795]
[1763565329192,0.00394203,3089.2,3089.0,3.2078]
[1763565329389,1.05350203,3089.2,3089.0,3.2078]
[1763565329791,1.05350203,3089.2,3088.4,3.6873]
[1763565329991,1.05350203,3089.2,3088.8,3.2078]
[1763565330197,1.05350203,3089.2,3089.1,0.4795]
[1763565330591,0.00394203,3089.2,3089.1,0.4795]
[1763565331191,0.00394203,3089.2,3088.8,3.2078]
[1763565331793,0.52483,3088.9,3088.4,3.6873]
[1763565332299,0.52485,3088.8,3088.4,3.6873]
[1763565332693,1.04971,3088.8,3088.4,3.6873]
[1763565334294,3.7327,3088.5,3087.8,1.10558226]
[1763565334594,0.5249,3088.5,3088.4,0.4665]
[1763565334797,0.00394203,3089.2,3088.4,3.6743]
[1763565335105,3.2078,3089.6,3089.1,0.4665]
[1763565335997,3.21070085,3089.6,3089.1,0.4665]
[1763565336310,1.04956,3089.2,3089.1,0.4665]
[1763565336510,1.04968,3088.9,3088.4,4.77988226]
[1763565336704,3.2078,3088.8,3088.4,3.6743]
[1763565337010,1.0498,3088.5,3088.4,3.2078]
[1763565337203,3.2078,3088.8,3087.7,0.50296872]
[1763565337399,3.2078,3088.4,3087.7,0.50296872]
[1763565337903,1.05004,3087.8,3087.7,0.50296872]
[1763565338110,1.05004,3087.8,3087.7,0.00236872]
[1763565339499,1.05004,3087.8,3087.7,0.46886872]
[1763565341107,1.05004,3087.8,3087.7,3.67666872]
[1763565341303,1.05004,3087.8,3087.7,0.46886872]
[1763565345716,0.00290085,3089.6,3088.4,0.4665]
[1763565345907,1.0496,3089.1,3088.6,1.11631173]
[1763565346108,3.2078,3088.9,3088.5,1.11631173]
[1763565346302,3.2078,3088.9,3088.1,3.2078]
[1763565346505,1.04992,3088.2,3087.9,1.11631173]
[1763565346812,3.2078,3088.4,3087.7,0.46886872]
[1763565347019,1.05,3087.9,3087.7,0.46886872]
[1763565347610,3.2078,3088.4,3087.7,0.46886872]
[1763565347806,1.04978,3088.6,3088.1,0.83701048]
[1763565348110,1.04978,3088.6,3088.4,0.4665]
[1763565349013,1.04978,3088.6,3088.5,0.7919]
[1763565349713,3.2078,3089.2,3088.5,0.7919]
[1763565349912,1.04972,3088.8,3088.4,4.51131048]
[1763565350612,0.5249,3088.5,3088.4,4.4662]
[1763565351209,1.04984,3088.4,3088.1,0.83701048]
[1763565351412,1.04984,3088.4,3088.3,0.7919]
[1763565351708,1.04984,3088.4,3088.2,0.4665]
[1763565353021,1.04984,3088.4,3088.3,0.7919]
[1763565354114,3.2078,3089.1,3089.0,0.7919]
[1763565354314,3.2078,3089.1,3088.8,0.4665]
[1763565355018,0.00290085,3089.6,3088.8,0.4665]
[1763565355019,3.2078,3089.5,3088.8,3.6743]
[1763565355316,1.0498,3088.6,3088.2,0.4665]
[1763565355512,1.0498,3088.6,3088.3,3.2078]
[1763565356018,1.0498,3088.6,3088.2,0.4665]
[1763565357417,1.0498,3088.5,3088.2,0.4665]
[1763565358207,1.0498,3088.5,3088.4,0.7919]
[1763565359718,0.00290085,3089.6,3089.5,0.3161]
[1763565360018,0.7884,3089.6,3089.5,3.2078]
[1763565360410,1.04934,3089.9,3089.5,3.2078]
[1763565360619,0.4349,3090.0,3089.5,4.04461818]
[1763565360812,0.43831833,3090.0,3089.9,3.2078]
[1763565361013,0.43831833,3090.0,3089.9,3.21023245]
[1763565361317,2.27601833,3090.0,3089.9,0.00243245]
[1763565361519,1.31312,3089.6,3089.5,3.2078]
[1763565361710,0.43831833,3090.0,3089.5,3.2078]
[1763565362019,0.43831833,3090.0,3089.9,3.2078]
[1763565362411,0.43831833,3090.0,3089.9,3.21037936]
[1763565362612,0.00341833,3090.0,3089.9,3.51397936]
[1763565363012,1.24901833,3090.0,3089.9,0.00257936]
[1763565364016,0.777,3089.6,3089.5,3.2078]
[1763565364215,1.04934,3089.9,3089.5,3.2078]
[1763565365123,1.04934,3089.9,3089.5,3.21099561]
[1763565365631,0.00341833,3090.0,3089.9,0.3062]
[1763565365921,0.00341833,3090.0,3089.9,3.514]
[1763565366325,1.04904,3090.8,3089.9,10.35081818]
[1763565366519,1.04904,3090.8,3090.3,3.2078]
[1763565366824,1.04904,3090.8,3090.7,0.3062]
[1763565367016,3.2078,3091.4,3090.7,6.791]
[1763565367215,0.00227763,3091.2,3091.1,3.2078]
[1763565367415,1.0487,3091.8,3091.7,0.3062]
[1763565367923,0.4686,3092.4,3091.7,0.3062]
[1763565368221,1.04836,3092.8,3092.0,3.2078]
[1763565368429,1.05071337,3092.8,3092.0,3.21018449]
[1763565368638,1.05071337,3092.8,3092.4,3.2078]
[1763565371527,1.05071337,3092.8,3092.7,0.3062]
[1763565371716,0.777,3092.5,3092.4,3.21265044]
[1763565371920,0.00235337,3092.8,3092.4,3.21265044]
[1763565372622,0.00235337,3092.8,3092.7,0.3062]
[1763565373024,0.00235337,3092.8,3092.4,3.21265044]
[1763565373322,0.00235337,3092.8,3092.4,6.48665044]
[1763565373827,0.00235337,3092.8,3092.7,0.3062]
[1763565374326,0.00235337,3092.8,3092.4,6.48665044]
[1763565374623,0.00235337,3092.8,3092.5,3.273]
[1763565375015,0.00235337,3092.8,3092.4,3.21265044]
[1763565375224,0.777,3092.5,3092.4,0.00485044]
[1763565375426,0.777,3092.1,3092.0,3.21018449]
[1763565376223,1.04856,3092.2,3092.0,3.21018449]
[1763565378518,0.777,3092.1,3092.0,0.00238449]
[1763565379830,1.04856,3092.2,3091.2,3.2078]
[1763565379831,0.777,3091.3,3091.2,3.2078]
[1763565380024,0.777,3091.3,3090.6,3.2078]
[1763565380025,0.777,3090.7,3090.6,3.2078]
[1763565380216,0.4686,3090.6,3089.8,3.2078]
[1763565380421,0.4686,3090.6,3088.9,1.11634725]
[1763565380422,1.04928,3090.1,3088.9,3.2078]
[1763565380719,0.4686,3090.6,3088.9,3.2078]
[1763565380720,0.4686,3089.4,3088.9,3.2078]
[1763565380922,0.47271471,3089.4,3088.9,0.00336914]
[1763565381324,4.25744,3089.0,3088.8,0.00485044]
[1763565381723,3.21191471,3089.4,3088.8,0.00485044]
[1763565381927,3.21191471,3089.4,3088.8,3.21265044]
[1763565382320,4.26141471,3089.4,3088.8,3.21504063]
[1763565382721,3.2078,3089.0,3088.8,0.00724063]
[1763565383431,4.26141471,3089.4,3088.8,0.00724063]
[1763565383625,0.00411471,3089.4,3089.1,3.6747]
[1763565384629,0.00411471,3089.4,3089.1,3.2078]
[1763565385136,0.00411471,3089.4,3088.8,0.00724063]
[1763565385729,0.00411471,3089.4,3089.1,3.2078]
[1763565386130,0.00485044,3089.5,3089.1,6.4788]
[1763565386330,0.00485044,3089.5,3089.1,3.2078]
[1763565386728,0.00485044,3089.5,3089.1,3.6369]
[1763565387129,0.00755171,3089.5,3089.1,3.6369]
[1763565387548,3.21535171,3089.5,3089.1,3.2078]
[1763565387728,3.21535171,3089.5,3088.8,0.00724063]
[1763565388035,1.0495,3089.4,3088.8,0.00724063]
[1763565388734,3.21535171,3089.5,3088.8,0.00724063]
[1763565388735,0.00755171,3089.5,3089.1,3.2078]
[1763565388934,0.00755171,3089.5,3089.1,3.6369]
[1763565389239,3.21535171,3089.5,3088.8,0.00724063]
[1763565390035,0.00755171,3089.5,3088.8,0.00724063]
[1763565390239,0.00755171,3089.5,3089.1,3.6369]
[1763565390546,0.4686,3090.6,3089.1,9.6369]
[1763565390735,3.2078,3090.7,3090.0,3.2078]
[1763565391032,3.2078,3091.2,3090.5,3.6369]
[1763565391229,3.2078,3091.2,3090.5,0.4291]
[1763565391435,3.21640475,3091.2,3090.5,0.00485044]
[1763565391633,3.2078,3090.8,3090.5,0.00485044]
[1763565392033,3.2078,3090.8,3089.7,3.2078]
[1763565392234,1.04918,3090.4,3089.7,3.2078]
[1763565393032,1.04918,3090.4,3089.7,3.21265044]
[1763565393727,3.2078,3090.8,3090.1,3.2078]
[1763565394937,1.05752475,3091.2,3090.6,3.2078]
[1763565395138,1.0379,3090.7,3090.6,3.2078]
[1763565395835,1.0379,3090.7,3090.2,3.2078]
[1763565396429,1.0379,3090.7,3090.6,3.2078]
[1763565396635,0.00860475,3091.2,3090.6,3.2078]
[1763565397044,0.00860475,3091.2,3091.1,3.2078]
[1763565397245,3.2078,3091.8,3091.1,6.4768]
[1763565398139,3.21627751,3091.8,3091.1,6.4794552]
[1763565398646,3.21627751,3091.8,3091.2,0.1329]
[1763565398848,0.00847751,3091.8,3091.6,3.2078]
[1763565399143,0.00847751,3091.8,3091.4,0.00485044]
[1763565400440,0.4366,3093.3,3091.6,3.2078]
[1763565400642,3.2078,3092.8,3092.0,3.2078]
[1763565401344,3.211301,3092.8,3092.0,3.2078]
[1763565403343,1.48502,3092.6,3092.0,3.2078]
[1763565403546,1.04846,3092.5,3092.0,3.2078]
[1763565403845,3.2078,3092.4,3091.6,3.266]
[1763565404036,3.2078,3092.4,3091.5,3.2078]
[1763565404242,3.2078,3092.5,3091.5,3.2078]
[1763565404851,1.04854,3092.3,3091.5,3.2078]
[1763565405141,0.003501,3092.8,3092.2,3.2078]
[1763565406242,1.051861,3092.8,3092.2,3.2078]
[1763565406443,3.6444,3092.6,3092.2,3.2078]
[1763565406651,4.69282,3092.6,3092.2,3.2078]
[1763565408058,0.003501,3092.8,3092.2,3.2078]
[1763565408756,3.2078,3092.6,3092.2,3.2078]
[1763565409354,3.2078,3093.9,3092.3,6.0]
[1763565409649,0.4366,3093.3,3092.9,3.2078]
[1763565409850,1.04822,3093.2,3092.8,0.00485044]
[1763565410351,3.21116056,3093.2,3092.5,3.2078]
[1763565410652,0.4366,3092.6,3092.5,3.2078]
[1763565413153,0.4366,3092.6,3092.2,0.00485044]
[1763565413154,1.04846,3092.5,3092.2,0.00485044]
[1763565413759,0.4366,3091.9,3091.7,3.2078]
[1763565413957,0.4366,3091.9,3091.1,3.2104552]
[1763565413958,0.4366,3091.2,3091.1,3.2104552]
[1763565414257,0.4366,3091.2,3090.4,3.2078]
[1763565414460,0.4366,3091.2,3090.0,0.83681818]
[1763565414461,0.4366,3090.5,3089.9,0.83681818]
[1763565414756,0.4366,3091.2,3090.4,3.2078]
[1763565414952,0.00485044,3091.1,3090.9,3.2078]
[1763565415157,0.00485044,3091.1,3090.5,3.2078]
[1763565415458,0.00828151,3091.1,3090.9,3.2078]
[1763565417160,0.4366,3091.9,3090.9,10.04461818]
[1763565417455,0.4366,3091.9,3091.3,3.2078]
[1763565417658,0.4366,3091.9,3090.9,0.83681818]
[1763565417659,0.4366,3091.2,3091.0,3.263]
[1763565418046,0.44070489,3091.2,3091.0,3.263]
[1763565418655,0.00485044,3091.4,3091.0,3.263]
[1763565418864,0.00485044,3091.4,3091.3,3.2078]
[1763565419756,0.0072134,3091.4,3091.3,3.2078]
[1763565420263,4.25616,3092.8,3091.3,9.2078]
[1763565420454,4.25616,3092.8,3092.2,3.2078]
[1763565420651,1.04836,3092.8,3092.2,3.2078]
[1763565421259,0.43951172,3092.6,3092.2,3.2078]
[1763565421748,0.43951172,3092.6,3092.2,4.04242031]
[1763565422656,0.43951172,3092.6,3092.2,3.2078]
[1763565422857,0.43951172,3092.6,3092.2,4.04242031]
[1763565423665,0.43951172,3092.6,3092.2,3.2078]
[1763565423962,0.00291172,3092.6,3092.3,0.83462031]
[1763565424663,0.00291172,3092.6,3092.4,0.83462031]
[1763565424864,0.4366,3093.3,3092.5,1.11282708]
[1763565425161,1.04801,3093.8,3093.1,3.2078]
[1763565425359,3.6444,3094.0,3093.6,3.2078]
[1763565425760,1.04774,3094.6,3093.6,4.0412973]
[1763565425957,1.7105525,3096.0,3093.6,4.0412973]
[1763565425958,1.0475,3095.3,3094.5,3.2078]
[1763565426161,1.0475,3095.3,3094.9,3.2078]
[1763565426566,3.2078,3096.0,3094.9,3.2078]
[1763565426758,0.4563,3096.1,3095.3,3.2078]
[1763565427064,0.45972233,3096.1,3095.8,3.2078]
[1763565427366,0.45972233,3096.1,3095.8,3.21121128]
[1763565427367,0.00342233,3096.1,3095.8,3.21121128]
[1763565428268,0.4563,3096.8,3095.8,3.21121128]
[1763565428463,0.4563,3096.8,3096.7,3.2078]
[1763565429058,0.45985725,3096.8,3096.7,3.2078]
[1763565429266,3.66765725,3096.8,3096.3,3.2078]
[1763565430065,0.45985725,3096.8,3096.3,3.2078]
[1763565430467,0.00355725,3096.8,3096.7,3.2078]
[1763565430966,0.4563,3097.5,3096.7,3.2078]
[1763565431271,0.4563,3097.5,3097.3,3.2078]
[1763565431568,0.4563,3097.5,3097.1,0.00485044]
[1763565431773,0.4563,3096.8,3096.5,2.423]
[1763565431962,0.4563,3096.8,3095.8,0.00341128]
[1763565431963,1.04712,3096.5,3095.8,0.00341128]
[1763565432268,1.0473,3095.9,3095.8,0.00341128]
[1763565432468,3.6641,3096.0,3094.9,3.2078]
[1763565432469,1.04744,3095.5,3094.9,3.2078]
[1763565432661,0.4563,3096.0,3095.4,3.2078]
[1763565432869,0.00485044,3095.5,3095.4,3.2078]
[1763565433165,1.0472,3096.2,3095.4,3.2078]
[1763565433368,3.2078,3096.4,3095.9,3.2078]
[1763565433562,3.2078,3097.0,3095.9,3.2078]
[1763565433758,3.2078,3097.0,3096.0,1.57]
[1763565433963,3.1718,3097.0,3096.0,1.57]
[1763565434265,3.2078,3096.6,3096.0,2.772]
[1763565434566,3.2078,3096.6,3095.9,0.00352432]
[1763565434567,3.2078,3096.2,3095.9,0.00352432]
[1763565435170,4.25486,3096.6,3095.9,3.21132432]
[1763565435367,3.2078,3096.1,3095.9,0.00352432]
[1763565435574,0.4563,3096.0,3095.4,3.2078]
[1763565435766,3.2078,3095.5,3094.9,3.21265044]
[1763565436068,0.4563,3095.2,3094.9,3.21265044]
[1763565436260,3.2078,3095.0,3094.2,3.2078]
[1763565436461,1.04778,3094.5,3094.2,3.2078]
[1763565436765,0.00381927,3094.5,3094.2,3.21040429]
[1763565438667,4.25564,3094.3,3094.0,0.00485044]
[1763565438871,0.4563,3093.6,3093.4,3.2078]
[1763565439474,0.52401,3093.8,3093.4,3.2078]
[1763565439673,0.4563,3094.2,3093.4,3.2078]
[1763565439867,0.4563,3094.2,3093.5,0.00485044]
[1763565441377,0.4563,3093.6,3093.5,0.00485044]
[1763565444279,0.4563,3093.6,3093.4,3.21063299]
[1763565444674,0.4563,3093.6,3092.3,1.851]
[1763565444675,1.04814,3093.4,3092.3,3.2078]
[1763565444884,3.2078,3093.1,3092.3,3.2078]
[1763565445085,1.04814,3093.4,3092.9,3.2078]
[1763565445471,1.0484,3092.7,3092.1,3.2078]
[1763565445672,3.73207,3092.2,3092.1,0.0022734]
[1763565445878,1.0488,3091.5,3091.3,3.2078]
[1763565446380,0.4563,3092.0,3091.3,3.2078]
[1763565446576,0.46115044,3092.0,3091.7,3.2078]
[1763565446776,0.00485044,3092.0,3091.7,3.21071485]
[1763565447180,0.00485044,3092.0,3091.7,0.00291485]
[1763565447378,0.00485044,3092.0,3091.7,3.21071485]
[1763565448182,0.46115044,3092.0,3091.7,3.21071485]
[1763565448383,0.00485044,3092.0,3091.7,3.21071485]
[1763565450687,0.43825044,3092.0,3091.7,3.21071485]
[1763565451582,0.52434,3091.8,3091.7,3.21071485]
[1763565451777,0.52434,3091.8,3091.7,0.00291485]
[1763565451983,0.52441,3091.4,3091.3,0.00485044]
[1763565452186,4.25662,3091.4,3091.3,0.00485044]
[1763565452484,1.04882,3091.4,3091.3,0.00485044]
[1763565452686,1.04882,3091.4,3090.7,3.2078]
[1763565452891,0.4426,3091.2,3090.7,3.2078]
[1763565453193,0.43825044,3092.0,3091.1,3.2078]
[1763565453382,0.43825044,3092.0,3091.5,3.2078]
[1763565453581,0.00485044,3092.0,3091.5,3.2078]
[1763565453786,3.2078,3093.4,3091.9,3.2078]
[1763565453984,3.2078,3093.4,3091.6,1.04874]
[1763565453985,3.2078,3093.4,3092.8,3.2078]
[1763565454683,3.21517249,3093.4,3092.8,3.2078]
[1763565455985,0.00737249,3093.4,3092.8,3.2078]
[1763565457795,0.00737249,3093.4,3093.3,3.2078]
[1763565458096,0.00737249,3093.4,3093.3,3.21129511]
[1763565458793,0.00737249,3093.4,3093.3,0.00349511]
[1763565459986,3.21517249,3093.4,3093.3,0.00349511]
[1763565460192,3.21517249,3093.4,3092.2,0.8334973]
[1763565460193,0.4426,3092.6,3092.2,3.2078]
[1763565460389,0.4426,3093.3,3092.2,5.0088]
[1763565460584,0.4426,3093.3,3092.4,3.2078]
[1763565461085,0.4426,3093.3,3092.8,3.2078]
[1763565461393,3.2078,3093.1,3092.5,0.00485044]
[1763565461994,3.2078,3093.1,3092.0,3.18004105]
[1763565462987,3.2078,3093.1,3092.2,0.00323366]
[1763565463192,0.4426,3093.3,3092.2,0.00323366]
[1763565463193,1.0485,3092.4,3092.2,0.00323366]
[1763565463498,0.4426,3092.0,3091.6,3.2078]
[1763565464392,0.4426,3092.0,3091.6,3.21028373]
[1763565464792,1.49122,3092.0,3091.6,3.21028373]
[1763565464996,1.04866,3091.9,3091.6,0.00248373]
[1763565465298,3.2078,3091.7,3090.8,3.2078]
[1763565465489,1.0488,3091.5,3090.8,3.2078]
[1763565465890,0.4426,3091.2,3090.8,3.2078]
[1763565466291,0.44633092,3091.2,3090.8,3.21097261]
[1763565466794,0.00373092,3091.2,3090.8,3.21097261]
[1763565467195,0.44633092,3091.2,3090.8,3.21097261]
[1763565467494,1.04892,3091.1,3090.8,0.00317261]
[1763565467894,3.2078,3090.9,3090.8,0.00317261]
[1763565468501,0.44633092,3091.2,3090.8,0.00317261]
[1763565468700,0.44633092,3091.2,3090.8,3.21097261]
[1763565469199,0.4426,3091.2,3090.8,3.21097261]
[1763565469389,0.4426,3091.2,3090.8,0.00317261]
[1763565469594,0.4426,3091.2,3090.8,3.21097261]
[1763565470199,0.44539198,3091.2,3090.8,3.21097261]
[1763565470503,3.2078,3091.1,3090.8,0.00317261]
[1763565471097,1.04896,3091.0,3090.8,0.00317261]
[1763565472604,1.04896,3091.0,3090.8,3.21097261]
[1763565472896,3.2078,3091.1,3090.4,3.2078]
[1763565473105,0.4426,3090.5,3090.0,3.2078]
[1763565473898,1.04894,3091.1,3090.4,3.2078]
[1763565474099,1.04894,3091.1,3090.4,3.21183032]
[1763565474506,0.44539198,3091.2,3090.5,3.2078]
[1763565475007,0.00279198,3091.2,3090.5,3.2078]
[1763565475201,0.00279198,3091.2,3091.0,3.2078]
[1763565475506,0.00279198,3091.2,3090.6,3.2078]
[1763565475702,0.44539198,3091.2,3090.6,3.2078]
[1763565475897,0.00279198,3091.2,3090.6,3.2078]
[1763565476302,0.00279198,3091.2,3091.0,3.2078]
[1763565476901,0.00485044,3091.6,3091.1,0.8334973]
[1763565477109,1.0486,3092.1,3091.5,3.2078]
[1763565477400,3.2078,3092.3,3091.5,3.2078]
[1763565477803,3.2078,3091.7,3091.3,0.8334973]
[1763565478107,3.2078,3091.7,3091.1,4.32062708]
[1763565478108,0.52772691,3091.7,3091.2,0.00485044]
[1763565478406,4.25989691,3091.7,3091.2,0.00485044]
[1763565478606,1.05209691,3091.7,3091.6,3.2078]
[1763565478803,0.00335691,3091.7,3091.6,3.2078]
[1763565480613,4.25626,3092.5,3091.6,3.2078]
[1763565480805,3.2078,3092.5,3091.6,3.2078]
[1763565481002,3.6504,3091.9,3091.2,3.21265044]
[1763565481201,0.4426,3091.9,3091.2,3.21265044]
[1763565481404,0.00842129,3091.9,3091.6,3.2078]
[1763565482600,0.38112129,3091.9,3091.6,3.2078]
[1763565482802,1.0488,3091.5,3091.2,3.21265044]
[1763565483010,1.04906,3090.7,3090.3,4.04300667]
[1763565483311,0.3727,3090.5,3089.9,15.69400667]
[1763565483510,0.3727,3090.5,3089.9,14.8588]
[1763565483904,0.3727,3091.2,3090.4,3.21183032]
[1763565483905,3.5805,3091.2,3090.4,3.21183032]
[1763565484104,3.5805,3091.2,3090.5,0.00485044]
[1763565484311,1.04892,3091.1,3090.5,0.00485044]
[1763565484805,1.04892,3091.1,3091.0,3.2078]
[1763565485010,3.2078,3091.7,3091.0,3.2078]
[1763565485612,0.3727,3091.2,3090.6,3.2078]
[1763565485910,1.0492,3090.3,3090.0,0.83520667]
[1763565486107,0.52469,3089.8,3089.5,0.83520667]
[1763565486308,3.2078,3089.7,3088.9,0.83520667]
[1763565486502,3.2078,3089.7,3089.0,3.2078]
[1763565487011,0.00737556,3089.7,3089.4,3.2078]
[1763565487608,1.4223,3089.1,3088.6,1.11282708]
[1763565487909,0.3727,3088.4,3087.4,1.67452088]
[1763565488116,0.3727,3088.4,3087.2,0.25791276]
[1763565488117,3.2078,3087.6,3087.2,1.67452088]
[1763565488310,3.2078,3087.6,3086.8,2.22534807]
[1763565488311,3.2078,3087.6,3086.9,3.2078]
[1763565488611,0.00485846,3087.7,3087.3,3.2078]
[1763565489815,0.00485846,3087.7,3086.9,0.00334623]
[1763565489816,3.2078,3087.4,3086.9,0.00334623]
[1763565490016,0.3727,3087.2,3086.9,0.00334623]
[1763565490316,3.2078,3087.0,3086.9,0.00334623]
[1763565491013,1.05038,3086.9,3086.0,3.2078]
[1763565491206,3.5805,3086.4,3086.0,3.2078]
[1763565491602,3.2078,3086.8,3086.0,3.2078]
[1763565491907,3.2078,3086.8,3086.0,3.21196071]
[1763565493718,3.2078,3086.4,3086.0,3.21196071]
[1763565493918,3.5805,3086.4,3086.0,3.21196071]
[1763565494313,3.5805,3086.4,3086.0,0.00416071]
[1763565494515,3.5805,3086.4,3085.2,3.2078]
[1763565494712,3.2078,3085.8,3085.2,3.2078]
[1763565495217,3.2078,3085.8,3084.8,3.2078]
[1763565495510,3.2078,3085.3,3084.8,0.00316093]
[1763565495722,3.2078,3085.7,3084.8,0.00316093]
[1763565495910,3.21265846,3086.1,3085.3,3.2078]
[1763565496111,3.21265846,3086.1,3084.8,0.00316093]
[1763565496112,3.2078,3085.7,3085.2,1.296]
[1763565496419,0.3727,3085.6,3085.2,1.296]
[1763565496817,3.2078,3085.3,3084.8,0.00316093]
[1763565497019,0.3727,3085.6,3083.9,3.2078]
[1763565497020,0.3727,3084.8,3083.9,3.2078]
[1763565497223,0.3727,3084.8,3083.5,3.2078]
[1763565497224,0.3727,3084.0,3083.5,3.2078]
[1763565497418,0.3727,3083.2,3082.7,3.2078]
[1763565497622,0.3727,3083.2,3081.2,3.58843476]
[1763565497923,0.37673902,3083.2,3081.2,0.98316418]
[1763565498219,3.2078,3082.4,3081.3,3.2078]
[1763565498524,3.2078,3082.4,3079.6,3.2078]
[1763565498525,0.52622,3080.8,3079.6,3.2078]